bitfinex/quotes_SOLUSD_20251124
["timestamp","ask_amount","ask_price","bid_price","bid_amount"]
[1763965407258,0.15197034,131.86,131.85,123.7786362]
[1763965408065,0.15197034,131.86,131.85,131.36301238]
[1763965412149,0.15197034,131.86,131.85,91.18533618]
[1763965412557,0.15197034,131.86,131.85,25.70533618]
[1763965412758,0.15197034,131.86,131.85,10.96437618]
[1763965412970,0.15197034,131.86,131.85,29.08533618]
[1763965414665,0.15197034,131.86,131.85,38.87416387]
[1763965416555,0.15197034,131.86,131.85,61.69416387]
[1763965417079,0.15592051,131.87,131.86,32.60882769]
[1763965417250,0.15592051,131.87,131.86,33.36720779]
[1763965418672,0.15592051,131.87,131.86,40.95100879]
[1763965418972,0.15592051,131.87,131.86,21.51100879]
[1763965419580,0.68,131.9,131.86,40.47051129]
[1763965419766,0.68,131.89,131.86,62.1]
[1763965419965,0.68,131.89,131.85,29.0848844]
[1763965420164,0.16597809,131.87,131.85,29.0848844]
[1763965420476,0.16597809,131.87,131.85,91.1848844]
[1763965420970,0.84597809,131.87,131.85,91.1848844]
[1763965423563,0.16597809,131.87,131.86,0.7583801]
[1763965424872,0.16597809,131.87,131.86,95.46720779]
[1763965425056,0.16502511,131.89,131.87,9.78882769]
[1763965425360,0.16502511,131.89,131.88,27.90978769]
[1763965425679,0.16502511,131.89,131.88,36.25070366]
[1763965425993,0.16502511,131.89,131.88,25.70361089]
[1763965426158,0.16502511,131.89,131.88,29.08361089]
[1763965426357,0.16502511,131.89,131.88,10.96265089]
[1763965429896,0.84502511,131.89,131.88,10.96265089]
[1763965431084,0.16502511,131.89,131.88,29.08361089]
[1763965431286,0.1490705,131.9,131.89,9.78882769]
[1763965431587,0.16033556,131.91,131.89,33.36703528]
[1763965431882,1e-08,131.91,131.9,35.49128882]
[1763965432082,1e-08,131.92,131.91,27.90978769]
[1763965432385,1e-08,131.93,131.91,33.36692032]
[1763965432687,0.15151017,131.96,131.93,18.12096]
[1763965434063,0.15151017,131.96,131.94,7.57920266]
[1763965434264,0.15151017,131.96,131.94,17.36803035]
[1763965435106,0.83151017,131.96,131.94,10.95920266]
[1763965436586,0.15151017,131.96,131.94,10.95920266]
[1763965436781,0.15151017,131.96,131.95,50.72978769]
[1763965437998,0.2,132.0,131.96,7.57805395]
[1763965438189,0.88,132.0,131.97,3.38]
[1763965438685,0.2,132.0,131.99,18.12096]
[1763965439495,0.2,132.0,131.99,50.72978769]
[1763965439880,0.68,132.04,132.0,9.78882769]
[1763965440203,1.02504821,132.01,132.0,7.57575757]
[1763965441004,1.02504821,132.01,131.96,47.67909746]
[1763965441005,1.02504821,132.01,131.96,10.95805395]
[1763965441208,0.68,132.0,131.96,29.90318883]
[1763965441374,0.68,132.0,131.96,48.02414883]
[1763965443083,0.34504821,132.01,131.99,18.12096]
[1763965443413,0.34504821,132.01,132.0,3.38]
[1763965444100,0.34504821,132.01,132.0,10.95575757]
[1763965444688,1.02504821,132.01,132.0,10.95575757]
[1763965445194,0.34504821,132.01,132.0,10.95575757]
[1763965445895,1.02504821,132.01,132.0,25.69671757]
[1763965446485,0.34504821,132.01,132.0,25.69671757]
[1763965447686,0.34504821,132.01,132.0,35.48554526]
[1763965449006,1.02504821,132.01,132.0,25.69671757]
[1763965449200,1.02504821,132.01,132.0,29.07671757]
[1763965449708,1.02504821,132.01,132.0,7.57575757]
[1763965452316,1.02504821,132.01,131.97,73.05734836]
[1763965452606,0.68,132.0,131.97,10.95734836]
[1763965452992,0.68,132.0,131.97,29.90104768]
[1763965453196,0.68,132.0,131.97,48.77975565]
[1763965453697,0.68,132.0,131.97,29.83605633]
[1763965453902,0.68,132.0,131.97,29.07830836]
[1763965455999,0.68,132.0,131.96,7.57784365]
[1763965456312,0.68,132.0,131.94,7.57920266]
[1763965458104,0.68,132.0,131.94,26.52720932]
[1763965460230,0.14605753,131.95,131.94,26.52720932]
[1763965460628,0.80605753,131.95,131.93,10.95957621]
[1763965460820,0.80605753,131.95,131.93,18.12096]
[1763965461021,0.80605753,131.95,131.9,19.7118509]
[1763965461022,0.80605753,131.95,131.89,9.78882769]
[1763965461222,0.80605753,131.95,131.9,10.96137228]
[1763965461531,0.80605753,131.95,131.9,29.08233228]
[1763965462342,0.14605753,131.95,131.94,7.57920266]
[1763965462715,0.14605753,131.95,131.94,10.95920266]
[1763965464131,0.80605753,131.95,131.94,3.38]
[1763965464335,0.80605753,131.95,131.93,25.70053243]
[1763965464632,0.80605753,131.95,131.93,29.08053243]
[1763965464850,0.80605753,131.95,131.93,3.38]
[1763965465134,0.80605753,131.95,131.91,25.70188638]
[1763965465435,0.80605753,131.95,131.91,29.08188638]
[1763965465750,0.80605753,131.95,131.91,10.96092638]
[1763965466411,0.80605753,131.95,131.91,48.03420235]
[1763965469738,0.80605753,131.95,131.91,10.96092638]
[1763965469914,0.80605753,131.95,131.91,29.08188638]
[1763965473519,0.80605753,131.95,131.88,18.12096]
[1763965473739,0.80605753,131.95,131.88,21.50096]
[1763965474315,0.80605753,131.95,131.88,48.03996799]
[1763965475216,0.80605753,131.95,131.89,3.38]
[1763965475416,0.80605753,131.95,131.9,7.58150113]
[1763965475617,0.80605753,131.95,131.89,10.96193434]
[1763965476334,0.80605753,131.95,131.92,18.12096]
[1763965476544,0.80605753,131.95,131.9,18.12096]
[1763965477543,0.80605753,131.95,131.91,18.12096]
[1763965478149,0.80605753,131.95,131.89,25.70302857]
[1763965479538,0.66,131.95,131.89,25.70302857]
[1763965480235,0.15984311,131.9,131.89,25.70302857]
[1763965481443,0.15984311,131.9,131.89,7.58206857]
[1763965482029,0.81984311,131.9,131.89,7.58206857]
[1763965482317,0.81984311,131.9,131.88,10.96250622]
[1763965482515,0.81984311,131.9,131.87,18.12096]
[1763965483019,0.81984311,131.9,131.87,25.70412578]
[1763965484350,0.81984311,131.9,131.87,18.12096]
[1763965485826,0.81984311,131.9,131.86,3.38]
[1763965487823,0.81984311,131.9,131.86,7.58379295]
[1763965493554,0.81984311,131.9,131.85,21.50096]
[1763965493861,0.81984311,131.9,131.84,10.96479115]
[1763965494031,0.81984311,131.9,131.83,7.58533099]
[1763965494230,0.81984311,131.9,131.83,10.96533099]
[1763965494547,0.81984311,131.9,131.82,3.38]
[1763965495739,0.81984311,131.9,131.82,18.12096]
[1763965496047,0.81984311,131.9,131.81,3.38]
[1763965496266,0.81984311,131.9,131.82,18.12096]
[1763965496849,0.81984311,131.9,131.83,18.12096]
[1763965497377,0.81984311,131.9,131.81,43.99884194]
[1763965497744,0.81984311,131.9,131.82,7.58610226]
[1763965499264,18.94080311,131.9,131.82,7.58610226]
[1763965499566,0.68,131.89,131.82,7.58610226]
[1763965499863,0.68,131.89,131.82,26.55135791]
[1763965500164,0.16332862,131.83,131.82,36.3401856]
[1763965500372,0.16332862,131.83,131.82,37.09879582]
[1763965500873,0.16332862,131.83,131.82,59.91879582]
[1763965501168,0.15878958,131.84,131.83,32.60882769]
[1763965501750,0.15878958,131.84,131.83,40.1943545]
[1763965502364,0.15193471,131.85,131.83,40.1943545]
[1763965502541,0.1420501,131.86,131.85,50.72978769]
[1763965502870,0.15727689,131.89,131.85,61.42796807]
[1763965503058,0.15727689,131.89,131.87,50.72978769]
[1763965503262,0.15727689,131.89,131.87,32.60882769]
[1763965503462,0.15727689,131.89,131.88,51.48805277]
[1763965503776,0.15727689,131.89,131.88,59.07070366]
[1763965503957,0.15727689,131.89,131.88,25.70361089]
[1763965504154,0.15727689,131.89,131.88,35.49243858]
[1763965504774,0.15727689,131.89,131.88,58.31243858]
[1763965505970,0.15727689,131.89,131.88,31.28978769]
[1763965506177,0.15727689,131.89,131.88,38.87243858]
[1763965508976,0.15727689,131.89,131.88,61.69243858]
[1763965510674,0.15727689,131.89,131.88,38.87243858]
[1763965511285,0.15727689,131.89,131.88,61.51555959]
[1763965511965,0.15727689,131.89,131.88,58.13555959]
[1763965512171,0.15727689,131.89,131.88,61.51555959]
[1763965513181,0.15727689,131.89,131.88,29.08361089]
[1763965513886,0.15727689,131.89,131.88,10.96265089]
[1763965514929,0.15727689,131.89,131.88,29.08361089]
[1763965515781,0.15727689,131.89,131.88,10.96265089]
[1763965516085,0.84727689,131.89,131.87,10.96282996]
[1763965516770,0.84727689,131.89,131.87,3.38]
[1763965517864,0.84727689,131.89,131.87,10.96321474]
[1763965518967,0.84727689,131.89,131.87,7.58321474]
[1763965519165,0.84727689,131.89,131.87,10.96321474]
[1763965519588,0.69,131.89,131.87,10.96321474]
[1763965520085,0.14902785,131.88,131.87,10.96321474]
[1763965522480,0.14902785,131.88,131.87,11.72153733]
[1763965523594,0.14902785,131.88,131.87,21.51036502]
[1763965524315,0.83902785,131.88,131.87,11.72153733]
[1763965524602,0.83902785,131.88,131.87,3.38]
[1763965525478,0.14902785,131.88,131.87,3.38]
[1763965525906,0.83902785,131.88,131.87,3.38]
[1763965526285,0.83902785,131.88,131.86,7.58367532]
[1763965526474,0.83902785,131.88,131.87,3.38]
[1763965527973,0.14902785,131.88,131.87,29.0841859]
[1763965528178,0.14902785,131.88,131.87,29.84250849]
[1763965531495,0.14902785,131.88,131.87,39.63133618]
[1763965536506,0.14902785,131.88,131.87,62.45133618]
[1763965539628,0.69,131.91,131.87,81.40940094]
[1763965539819,0.69,131.9,131.87,80.65107835]
[1763965540124,0.15988464,131.88,131.87,80.65107835]
[1763965540634,0.15988464,131.88,131.87,81.40940094]
[1763965540922,0.84988464,131.88,131.87,48.80057325]
[1763965541107,0.15988464,131.88,131.87,81.40940094]
[1763965543505,0.15988464,131.88,131.87,91.0338785]
[1763965544325,0.1394039,131.89,131.87,91.0338785]
[1763965545321,0.1394039,131.89,131.88,40.19147858]
[1763965546026,0.15543483,131.9,131.88,40.19147858]
[1763965546326,0.15543483,131.9,131.89,0.75820759]
[1763965547005,0.15543483,131.9,131.89,8.34028356]
[1763965547203,0.15543483,131.9,131.89,49.28124356]
[1763965553828,0.15543483,131.9,131.89,52.22819552]
[1763965555230,0.14300206,131.91,131.9,9.78882769]
[1763965555424,0.14300206,131.91,131.9,13.16882769]
[1763965556318,0.14300206,131.91,131.9,23.69728078]
[1763965556931,0.14300206,131.91,131.9,46.51728078]
[1763965558319,0.85300206,131.91,131.9,46.51728078]
[1763965559525,0.71,131.91,131.9,46.51728078]
[1763965560222,0.8486608,131.91,131.89,18.87916759]
[1763965560534,0.8486608,131.91,131.9,2.94695196]
[1763965561526,0.8486608,131.91,131.89,3.38]
[1763965561735,0.8486608,131.91,131.9,2.94695196]
[1763965563216,0.8486608,131.91,131.88,2.94695196]
[1763965563416,0.8486608,131.91,131.88,6.32695196]
[1763965563608,0.8486608,131.91,131.87,10.52999756]
[1763965563807,0.8486608,131.91,131.87,13.90999756]
[1763965564419,0.8486608,131.91,131.88,2.94695196]
[1763965568245,0.8486608,131.91,131.89,2.94695196]
[1763965570333,0.8486608,131.91,131.87,65.04695196]
[1763965571838,0.8486608,131.91,131.87,2.94695196]
[1763965575455,0.8486608,131.91,131.88,2.94695196]
[1763965575623,0.8486608,131.91,131.87,2.94695196]
[1763965578352,0.8486608,131.91,131.88,2.94695196]
[1763965578537,0.8486608,131.91,131.88,4.60865799]
[1763965579447,0.71,131.91,131.88,4.60865799]
[1763965580152,0.14602349,131.89,131.88,4.60865799]
[1763965580549,0.82602349,131.89,131.88,4.60865799]
[1763965585860,0.82602349,131.89,131.87,4.60865799]
[1763965587742,0.82602349,131.89,131.88,4.60865799]
[1763965588436,0.14602349,131.89,131.88,4.60865799]
[1763965589154,0.82602349,131.89,131.88,4.60865799]
[1763965589859,0.82602349,131.89,131.87,66.70865799]
[1763965590752,0.82602349,131.89,131.87,62.1]
[1763965590968,0.82602349,131.89,131.87,66.70865799]
[1763965593060,0.82602349,131.89,131.86,7.98865799]
[1763965593279,0.82602349,131.89,131.86,4.60865799]
[1763965593639,0.82602349,131.89,131.85,4.60865799]
[1763965594973,0.82602349,131.89,131.84,62.1]
[1763965595143,0.82602349,131.89,131.81,18.96603817]
[1763965595144,4.60865799,131.88,131.83,4.60865799]
[1763965595349,5.43468148,131.89,131.85,18.12096]
[1763965595550,0.68,131.88,131.84,4.60865799]
[1763965596143,0.68,131.88,131.85,4.60865799]
[1763965600049,4.60865799,131.87,131.82,14.23313555]
[1763965600250,4.75849506,131.86,131.8,0.1]
[1763965600455,0.68,131.85,131.8,4.70865799]
[1763965600967,0.68,131.85,131.8,0.1]
[1763965600968,5.28865799,131.85,131.8,0.1]
[1763965601147,5.28865799,131.85,131.8,4.70865799]
[1763965601346,0.68,131.84,131.8,4.70865799]
[1763965601687,5.28865799,131.84,131.8,0.1]
[1763965602051,0.68,131.83,131.8,0.1]
[1763965602253,5.28865799,131.83,131.8,0.1]
[1763965602762,0.68,131.82,131.8,0.1]
[1763965603786,4.60865799,131.81,131.8,0.1]
[1763965604268,5.28865799,131.81,131.8,0.1]
[1763965606091,15.07748568,131.81,131.8,0.1]
[1763965610152,17.07748567,131.81,131.8,0.1]
[1763965611863,24.66416346,131.81,131.8,0.1]
[1763965613083,29.90978768,131.79,131.78,0.1]
[1763965613382,42.50710366,131.79,131.78,0.1]
[1763965613590,43.17710366,131.79,131.78,0.1]
[1763965613877,60.21141316,131.79,131.78,0.1]
[1763965614095,69.71087826,131.79,131.78,0.1]
[1763965619591,11.78882768,131.74,131.73,0.1]
[1763965619760,19.77748567,131.74,131.73,0.1]
[1763965619959,20.44748567,131.74,131.73,0.1]
[1763965620176,20.60411858,131.74,131.73,0.1]
[1763965620461,28.19482755,131.74,131.73,0.1]
[1763965620798,18.12096,131.72,131.66,0.1]
[1763965620961,12.45882768,131.73,131.57,0.7]
[1763965620962,18.12096,131.64,131.57,0.7]
[1763965621161,4.60865799,131.6,131.55,4.60865799]
[1763965621373,4.60865799,131.6,131.56,0.7]
[1763965621762,4.60865799,131.61,131.56,5.30865799]
[1763965622193,31.95978769,131.63,131.57,0.7]
[1763965622392,4.60865799,131.62,131.57,0.7]
[1763965623162,5.27865799,131.62,131.57,0.7]
[1763965623486,54.1443186,131.63,131.57,0.7]
[1763965623487,18.12096,131.63,131.59,4.60865799]
[1763965623901,18.12096,131.63,131.6,0.7]
[1763965624370,22.72961799,131.63,131.6,0.7]
[1763965625771,18.12096,131.61,131.6,0.7]
[1763965625966,22.72961799,131.61,131.58,0.7]
[1763965626174,22.72961799,131.61,131.55,4.60865799]
[1763965626175,18.12096,131.59,131.55,4.60865799]
[1763965626692,18.12096,131.58,131.56,0.7]
[1763965627792,18.12096,131.59,131.56,0.7]
[1763965628094,18.12096,131.58,131.56,0.7]
[1763965628497,18.12096,131.58,131.52,0.7]
[1763965628498,5.27865799,131.57,131.52,0.7]
[1763965628703,4.60865799,131.53,131.52,0.7]
[1763965628875,5.27865799,131.53,131.46,4.60865799]
[1763965629080,4.60865799,131.51,131.47,0.7]
[1763965629587,4.60865799,131.5,131.47,0.7]
[1763965629789,18.12096,131.49,131.47,0.7]
[1763965630394,4.60865799,131.51,131.47,0.7]
[1763965630598,14.39748568,131.51,131.47,0.7]
[1763965630794,37.30280607,131.52,131.47,0.7]
[1763965630987,18.12096,131.52,131.47,5.30865799]
[1763965631299,22.72961799,131.52,131.47,0.7]
[1763965631507,4.60865799,131.49,131.45,0.7]
[1763965631679,4.60865799,131.49,131.44,5.30865799]
[1763965632106,7.98865799,131.5,131.45,5.30865799]
[1763965632294,4.60865799,131.53,131.48,18.12096]
[1763965632494,5.27865799,131.55,131.49,4.60865799]
[1763965632685,4.60865799,131.54,131.5,18.12096]
[1763965633004,4.60865799,131.51,131.48,0.7]
[1763965633210,13.83882769,131.53,131.48,0.7]
[1763965633520,13.83882769,131.53,131.49,4.60865799]
[1763965633521,3.38,131.53,131.49,4.60865799]
[1763965633683,3.38,131.53,131.48,0.7]
[1763965633878,9.78882769,131.56,131.5,4.60865799]
[1763965634078,7.98865799,131.57,131.52,4.60865799]
[1763965634506,7.98865799,131.57,131.53,0.7]
[1763965636109,3.38,131.57,131.53,5.30865799]
[1763965636281,3.38,131.57,131.54,0.68]
[1763965636481,7.98865799,131.57,131.54,0.68]
[1763965636797,3.38,131.57,131.54,0.68]
[1763965637510,7.98865799,131.57,131.54,0.68]
[1763965638007,3.38,131.57,131.54,0.68]
[1763965639302,7.98865799,131.57,131.52,4.60865799]
[1763965639528,4.60865799,131.54,131.45,7.6074553]
[1763965639676,9.78882769,131.55,131.49,5.28865799]
[1763965639876,9.78882769,131.55,131.49,0.68]
[1763965640104,15.10748568,131.55,131.5,5.28865799]
[1763965640307,0.16119025,131.51,131.5,5.28865799]
[1763965640503,0.16119025,131.51,131.46,18.12096]
[1763965640808,0.16119025,131.51,131.47,7.60629801]
[1763965640991,0.16119025,131.51,131.5,2.96692776]
[1763965641388,0.16119025,131.51,131.5,21.76788776]
[1763965642980,0.16119025,131.51,131.5,11.25149049]
[1763965643182,0.16607248,131.52,131.51,2.96692776]
[1763965643400,0.16607248,131.52,131.51,3.64692776]
[1763965643879,0.16607248,131.52,131.51,6.69512741]
[1763965644497,0.16607248,131.52,131.51,3.64692776]
[1763965646892,0.16607248,131.52,131.51,11.25091224]
[1763965647401,0.16607248,131.52,131.51,3.64692776]
[1763965648529,0.16607248,131.52,131.51,21.76788776]
[1763965648697,0.16607248,131.52,131.51,29.37187224]
[1763965648895,0.16607248,131.52,131.51,32.3388]
[1763965649437,0.16607248,131.52,131.51,29.37187224]
[1763965650524,0.16607248,131.52,131.51,32.42007189]
[1763965655726,0.16607248,131.52,131.51,29.37187224]
[1763965658012,0.16607248,131.52,131.51,0.68]
[1763965658218,0.16607248,131.52,131.51,3.64692776]
[1763965659225,0.16607248,131.52,131.51,11.25091224]
[1763965659632,0.71,131.56,131.51,11.25091224]
[1763965659829,0.71,131.56,131.52,0.68]
[1763965660047,0.71,131.56,131.53,2.96692776]
[1763965660217,0.13871968,131.54,131.53,2.96692776]
[1763965660618,0.84871968,131.54,131.49,18.80096]
[1763965660925,0.84871968,131.54,131.5,2.96692776]
[1763965661511,0.84871968,131.54,131.51,2.96692776]
[1763965661942,0.84871968,131.54,131.5,0.68]
[1763965662236,0.84871968,131.54,131.51,2.96692776]
[1763965664062,0.13871968,131.54,131.53,2.96692776]
[1763965664533,0.13871968,131.54,131.53,3.65692776]
[1763965665324,0.13871968,131.54,131.53,11.25975601]
[1763965665826,0.13871968,131.54,131.53,3.65692776]
[1763965666025,0.14041389,131.55,131.53,3.65692776]
[1763965666026,0.14041389,131.55,131.53,12.02003883]
[1763965666237,0.00041389,131.55,131.54,4.08]
[1763965666445,0.00041389,131.55,131.54,14.64917802]
[1763965667042,0.00041389,131.55,131.54,7.04692776]
[1763965667339,0.00041389,131.55,131.54,3.66692776]
[1763965667943,0.00041389,131.55,131.54,11.26917802]
[1763965668141,0.00041389,131.55,131.54,3.66692776]
[1763965668730,0.00041389,131.55,131.54,2.96692776]
[1763965669532,0.00041389,131.55,131.54,3.66692776]
[1763965670122,0.00041389,131.55,131.54,11.26917802]
[1763965673732,0.00041389,131.55,131.51,21.50096]
[1763965673938,0.00041389,131.55,131.54,2.96692776]
[1763965674332,0.00041389,131.55,131.54,3.66692776]
[1763965674542,0.00041389,131.55,131.54,21.78788776]
[1763965675253,0.00041389,131.55,131.54,29.39013802]
[1763965676461,0.16117558,131.56,131.54,39.17896571]
[1763965676625,0.1514478,131.57,131.56,2.96692776]
[1763965676826,0.1514478,131.57,131.55,22.20096]
[1763965677026,0.1514478,131.57,131.56,2.96692776]
[1763965677728,0.1514478,131.57,131.55,21.50096]
[1763965678034,0.1514478,131.57,131.56,2.96692776]
[1763965679627,0.7,131.58,131.56,2.96692776]
[1763965680349,0.14044762,131.57,131.56,2.96692776]
[1763965680765,0.14044762,131.57,131.56,3.66692776]
[1763965681129,0.14044762,131.57,131.56,4.42703721]
[1763965681560,0.14044762,131.57,131.56,22.54799721]
[1763965681765,0.14044762,131.57,131.56,30.14909176]
[1763965683060,0.14044762,131.57,131.56,102.03791945]
[1763965683238,0.14795305,131.58,131.56,102.03791945]
[1763965683437,0.14795305,131.58,131.57,25.16788776]
[1763965683862,0.14795305,131.58,131.57,32.76840459]
[1763965684253,0.13864622,131.59,131.57,32.76840459]
[1763965684455,0.14747313,131.61,131.59,9.78882769]
[1763965684762,0.15959366,131.64,131.61,21.08788776]
[1763965684935,0.15959366,131.64,131.62,24.46788776]
[1763965685358,0.15959366,131.64,131.62,25.16788776]
[1763965686043,0.15959366,131.64,131.62,32.76551729]
[1763965693246,0.15959366,131.64,131.62,28.68551729]
[1763965693451,0.86152433,131.63,131.62,28.68551729]
[1763965694040,0.16152433,131.63,131.62,28.68551729]
[1763965694261,0.86152433,131.63,131.62,2.96692776]
[1763965694658,0.16152433,131.63,131.62,3.66692776]
[1763965694959,0.16152433,131.63,131.62,29.38551729]
[1763965696168,0.16152433,131.63,131.62,52.18551729]
[1763965696371,0.16152433,131.63,131.62,29.38551729]
[1763965699573,0.86,131.66,131.62,110.47959113]
[1763965699770,0.86,131.66,131.65,2.96692776]
[1763965700267,0.99951392,131.66,131.65,2.96692776]
[1763965702597,0.99951392,131.66,131.65,4.62364928]
[1763965703073,0.33951392,131.66,131.65,4.62364928]
[1763965703262,0.33951392,131.66,131.65,6.0832391]
[1763965703972,0.33951392,131.66,131.65,23.467965]
[1763965704157,0.33951392,131.66,131.65,85.567965]
[1763965704364,0.13885514,131.67,131.65,85.567965]
[1763965704566,0.13885514,131.67,131.66,23.44460928]
[1763965705672,0.13885514,131.67,131.66,33.23343697]
[1763965706260,0.13885514,131.67,131.66,40.82875825]
[1763965707059,0.13885514,131.67,131.66,26.41628128]
[1763965707261,0.13885514,131.67,131.66,30.33993056]
[1763965708157,0.13885514,131.67,131.66,31.03993056]
[1763965708574,0.13885514,131.67,131.66,93.13993056]
[1763965709281,0.13811,131.68,131.67,9.78882769]
[1763965709457,0.13811,131.68,131.67,19.25195141]
[1763965710575,0.79811,131.68,131.67,3.38]
[1763965710760,0.79811,131.68,131.66,87.81615163]
[1763965710963,0.79811,131.68,131.67,4.62364928]
[1763965714761,0.79811,131.68,131.66,4.62364928]
[1763965714962,0.79811,131.68,131.65,4.62364928]
[1763965715586,0.79811,131.68,131.66,4.62364928]
[1763965716766,0.13811,131.68,131.67,4.62364928]
[1763965718699,0.13811,131.68,131.67,12.21839371]
[1763965719001,0.13811,131.68,131.67,111.69130512]
[1763965719285,0.15104143,131.69,131.68,9.78882769]
[1763965719459,0.15104143,131.69,131.68,19.73612625]
[1763965719656,0.2,131.72,131.68,19.73612625]
[1763965719862,0.86,131.72,131.71,4.62364928]
[1763965720392,1.02236273,131.72,131.71,4.62364928]
[1763965724694,0.36236273,131.72,131.71,12.21608721]
[1763965725395,0.36236273,131.72,131.71,12.975331]
[1763965725695,0.36236273,131.72,131.71,17.045331]
[1763965726384,0.36236273,131.72,131.71,16.355331]
[1763965727483,0.36236273,131.72,131.71,26.88385307]
[1763965727998,1.02236273,131.72,131.71,26.12460928]
[1763965728382,0.36236273,131.72,131.71,33.71704721]
[1763965729289,0.36236273,131.72,131.71,34.476291]
[1763965729593,0.36236273,131.72,131.71,35.186291]
[1763965729899,0.36236273,131.72,131.71,31.806291]
[1763965730080,0.36236273,131.72,131.71,34.476291]
[1763965730681,0.36236273,131.72,131.71,31.096291]
[1763965731079,1.02236273,131.72,131.71,22.74460928]
[1763965731284,1.02236273,131.72,131.71,4.62364928]
[1763965731892,1.02236273,131.72,131.68,0.75941676]
[1763965732091,0.36236273,131.72,131.71,4.62364928]
[1763965732611,1.02236273,131.72,131.71,4.62364928]
[1763965734793,0.36236273,131.72,131.71,4.62364928]
[1763965735114,1.02236273,131.72,131.71,4.62364928]
[1763965739597,0.2,131.72,131.71,4.62364928]
[1763965740095,0.86,131.72,131.71,4.62364928]
[1763965740311,1.01253876,131.72,131.71,4.62364928]
[1763965745542,0.35253876,131.72,131.71,4.62364928]
[1763965747823,1.01253876,131.72,131.71,4.62364928]
[1763965750702,1.01253876,131.72,131.68,70.40377576]
[1763965750907,0.66,131.71,131.7,4.62364928]
[1763965751418,0.66,131.71,131.68,4.62364928]
[1763965752326,0.66,131.71,131.69,4.62364928]
[1763965752513,0.66,131.71,131.66,8.30494087]
[1763965752714,0.66,131.71,131.68,4.62364928]
[1763965753223,0.66,131.71,131.69,4.62364928]
[1763965754128,0.66,131.71,131.68,4.62364928]
[1763965756803,0.66,131.71,131.67,4.62364928]
[1763965757118,5.28364928,131.71,131.66,4.62364928]
[1763965757323,0.66,131.71,131.67,4.62364928]
[1763965757524,0.66,131.7,131.67,4.62364928]
[1763965758630,0.66,131.7,131.66,4.62364928]
[1763965759026,0.66,131.7,131.63,4.02]
[1763965759331,0.66,131.7,131.67,4.62364928]
[1763965760410,0.15037041,131.68,131.67,4.62364928]
[1763965760810,0.81037041,131.68,131.67,4.62364928]
[1763965762335,0.81037041,131.68,131.65,4.62364928]
[1763965764647,0.81037041,131.68,131.63,0.66]
[1763965764853,0.81037041,131.68,131.65,2.95983656]
[1763965765824,0.81037041,131.68,131.64,2.95983656]
[1763965766244,0.15037041,131.68,131.67,2.95983656]
[1763965766613,0.15037041,131.68,131.65,62.1]
[1763965766836,0.15037041,131.68,131.67,2.95983656]
[1763965767341,0.15037041,131.68,131.67,3.61983656]
[1763965767922,0.15037041,131.68,131.67,11.21458099]
[1763965768128,0.15037041,131.68,131.67,11.97405543]
[1763965769138,0.15037041,131.68,131.67,4.379311]
[1763965769530,0.15037041,131.68,131.67,11.97405543]
[1763965770247,0.15037041,131.68,131.67,4.379311]
[1763965772219,0.15037041,131.68,131.67,11.97405543]
[1763965773627,0.15037041,131.68,131.67,74.07405543]
[1763965774823,0.15037041,131.68,131.67,71.11421887]
[1763965775045,0.15037041,131.68,131.67,74.07405543]
[1763965776519,0.15037041,131.68,131.67,11.97405543]
[1763965776728,0.1615851,131.69,131.67,95.70222936]
[1763965777036,0.15384498,131.7,131.69,18.12096]
[1763965777346,0.1521015,131.71,131.7,21.08079656]
[1763965777532,0.1521015,131.71,131.7,21.74079656]
[1763965777944,0.1521015,131.71,131.7,29.33381098]
[1763965778127,0.1521015,131.71,131.7,11.21285098]
[1763965778323,0.15207728,131.74,131.72,18.12096]
[1763965778525,0.15207728,131.74,131.72,25.10079656]
[1763965779021,0.15207728,131.74,131.72,28.14389443]
[1763965780223,0.29356999,131.73,131.72,35.73575595]
[1763965782025,0.15049659,131.73,131.72,35.73575595]
[1763965782219,0.15049659,131.73,131.72,35.07575595]
[1763965782659,0.15049659,131.73,131.72,35.73575595]
[1763965783462,0.15049659,131.73,131.72,17.61479595]
[1763965784059,0.15049659,131.73,131.72,16.95479595]
[1763965785457,0.15049659,131.73,131.72,17.62479595]
[1763965785669,0.15049659,131.73,131.72,79.05479595]
[1763965785965,0.15049659,131.73,131.72,79.72479595]
[1763965786461,0.15049659,131.73,131.72,79.05479595]
[1763965787657,0.86049659,131.73,131.72,2.95983656]
[1763965788034,0.86049659,131.73,131.7,3.0433294]
[1763965788239,0.86049659,131.73,131.72,2.95983656]
[1763965788646,0.86049659,131.73,131.71,2.95983656]
[1763965791549,0.86049659,131.73,131.68,8.26410789]